Cogmind - Beta 14 @@@ ROGUE MODE // 2024.08.24 @ 17:06:49 Player: hvatnajokl Result: Destroyed by H-55 Commando with Gauss Rifle Performance ------------- Evolutions (2) 1000 Regions Visited (6) 1200 Robots Destroyed (61) 305 Value Destroyed (1662) 1662 Prototype IDs (1) 20 Alien Tech Used (0) 0 Bonus (340) 340 TOTAL SCORE: 4527 Bonus ------- High Alert Combat Kills 247 Follower Combat Kills 93 Cogmind --------- Core Integrity 0/550 Matter 1/300 Energy 261/265 System Corruption 1% Temperature Cool (2) Movement Treading (160) Location -8/Storage Parts ------- > --- POWER (2) -------- Reinforced Ion Engine > --- PROPULSION (3) --- Light Treads Light Treads Wheel > --- UTILITY (3) ------ Large Storage Unit Experimental Sensor Array System Shield > --- WEAPON (3) ------- High-powered Shotgun Spear > --- INVENTORY (15) --- Small Storage Unit Large Matter Pod (150) Peak State ------------ > --- POWER ------------ Reinforced Ion Engine > --- PROPULSION ------- Light Treads Light Treads Wheel > --- UTILITY ---------- Large Storage Unit Experimental Sensor Array System Shield > --- WEAPON ----------- High-powered Shotgun Grenade Launcher Spear > --- INVENTORY -------- Small Storage Unit Large Matter Pod [Rating: 26] Favorites ----------- Power Ion Engine Engine Ion Engine Propulsion Wheel Treads Light Treads Leg Aluminum Leg Wheel Wheel Utility Large Storage Unit Device Experimental Sensor Array Storage Large Storage Unit Processor Improved Targeting Computer Hackware System Shield Protection Medium Armor Plating Weapon Beam Cannon Energy Gun Heavy EM Pulse Gun Energy Cannon Beam Cannon Ballistic Gun Assault Rifle Launcher Grenade Launcher Piercing Weapon Spear Build | -11 -10 -10 -10 -9 -8 -8 ------- Run | Yrd Mat Min Exi Min Mat Sto Slots Evolved 4 | . . . . . 4 . Power 1 | . . . . . 1 . Propulsion 1 | . . . . . 1 . Utility 1 | . . . . . 1 . Weapon 1 | . . . . . 1 . Parts Attached 44 | 5 8 1 1 4 19 6 Power 7 | 1 1 . 1 . 3 1 Engine 7 | 1 1 . 1 . 3 1 Core . | . . . . . . . Reactor . | . . . . . . . Propulsion 17 | 2 2 . . 2 9 2 Treads 8 | 2 . . . . 4 2 Leg 2 | . . . . . 2 . Wheel 7 | . 2 . . 2 3 . Hover . | . . . . . . . Flight . | . . . . . . . Utility 8 | 1 2 1 . 1 2 1 Device 2 | . . 1 . . . 1 Storage 2 | 1 1 . . . . . Processor 2 | . 1 . . . 1 . Hackware 1 | . . . . . 1 . Protection 1 | . . . . 1 . . Artifact . | . . . . . . . Weapon 12 | 1 3 . . 1 5 2 Energy Gun 1 | . . . . . 1 . Energy Cannon 2 | . 1 . . . 1 . Ballistic Gun 4 | 1 . . . 1 1 1 Ballistic Cannon . | . . . . . . . Launcher 4 | . 2 . . . 1 1 Special Weapon . | . . . . . . . Impact Weapon . | . . . . . . . Slashing Weapon . | . . . . . . . Piercing Weapon 1 | . . . . . 1 . Special Melee Weapon . | . . . . . . . Unidentified Prototypes 1 | . . 1 . . . . Parts Lost 19 | . 2 . . . 12 5 Power 4 | . . . . . 2 2 Propulsion 8 | . 2 . . . 6 . Utility 2 | . . . . . 1 1 Weapon 5 | . . . . . 3 2 Highest Loss Streak 14 | . 2 . . . 10 14 To Critical Strikes . | . . . . . . . Average Slot Usage (%) 84 | . 73 99 95 86 78 76 Engine 11 | . 14 14 9 14 11 8 Treads 7 | . 10 . . . 13 15 Wheel 12 | . 2 28 28 14 2 9 Device 5 | . . 11 14 12 . 7 Storage 12 | . 14 14 14 14 9 9 Processor 3 | . 6 2 . . 7 . Hackware 1 | . . . . . 3 9 Protection 1 | . . . . 1 4 . Energy Cannon 10 | . 8 14 14 14 7 . Ballistic Gun 5 | . 12 . . 2 8 6 Launcher 9 | . 3 14 14 11 8 3 Peak Build Rating 26 | 5 8 15 16 16 18 26 Average Rating 12 | 4 5 13 14 13 14 22 On Entrance 9 | . 5 8 15 15 9 16 Naked Turns . | . . . . . . . Heaviest Build 39 | 10 31 32 32 37 39 39 Greatest Support 40 | 40 40 20 20 20 40 40 Greatest Overweight (x) 11 | . 4 1 1 10 11 3 Average Overweight (x) . | . 1 1 1 2 . . Largest Inventory Capacity 15 | 8 15 15 15 15 15 15 Average Capacity 13 | 6 8 15 15 15 15 15 Most Carried 13 | . 5 7 8 10 13 5 Average Carried 7 | . 2 5 6 8 11 3 Final Capacity 15 | 8 15 15 15 15 15 15 Final Carried 9 | . 5 6 7 9 5 2 Class Distribution -------------------- 74% | Mutant 14% | Gunner 6% | Scavenger-Gunner 3% | Tank Dominant Class ---------------- Mutant | -10/Materials Mutant | -10/Mines Mutant | -10/Exiles Mutant | -9/Mines Gunner | -8/Materials Mutant | -8/Storage Resources | -11 -10 -10 -10 -9 -8 -8 ----------- Run | Yrd Mat Min Exi Min Mat Sto Matter Collected 1132 | 206 114 190 . 144 364 114 Remotely . | . . . . . . . Salvage Created 1333 | . 172 46 . 66 955 94 Parts 91 | . 7 7 . 2 70 5 Haulers Intercepted . | . . . . . . . Recyclers Shooed . | . . . . . . . Parts Field Recycled . | . . . . . . . Retrieved Matter . | . . . . . . . Parts Self-Destructed . | . . . . . . . Prevented . | . . . . . . . Kills | -11 -10 -10 -10 -9 -8 -8 ------- Run | Yrd Mat Min Exi Min Mat Sto Combat Hostiles Destroyed 43 | . 4 3 . 1 32 3 Melee 2 | . . . . . . 2 Guns 8 | . . . . 1 6 1 Cannons 4 | . 2 . . . 2 . AOE 29 | . 2 3 . . 24 . Classes Destroyed 11 | . 4 2 . 1 4 . Worker 7 | . 1 1 . 1 4 . Builder 4 | . 1 . . . 3 . Tunneler 2 | . . 1 . . 1 . Recycler 1 | . . . . . 1 . Mechanic 1 | . 1 . . . . . Watcher 3 | . . . . . 3 . Swarmer 15 | . . 3 . . 11 1 Grunt 19 | . 4 . . . 15 . Brawler 2 | . . . . . 1 1 Sentry 4 | . . . . 1 3 . Hunter 3 | . . . . . 2 1 Best Kill Streak 7 | . 2 3 . 1 7 6 Combat Bots Only 6 | . 2 3 . 1 6 6 Max Kills in Single Turn 4 | . 1 2 . 1 4 1 Gunslinging . | . . . . . . . Exploded 3 | . 1 2 . . 3 . Melee 1 | . . . . . . 1 Uniques/NPCs Destroyed . | . . . . . . . Combat | -11 -10 -10 -10 -9 -8 -8 -------- Run | Yrd Mat Min Exi Min Mat Sto Hostile Shots Fired 298 | . 70 1 . 4 174 49 Missed 106 | . 30 1 . 1 62 12 Damage Taken 2888 | . 612 . . 42 1700 534 Core 653 | . 82 . . . 447 124 Absorbed by Shields . | . . . . . . . Regen/Repaired (Parts) 138 | . . . . . 138 . Core Remaining (%) 83 | 100 . . . 67 . . Volleys Fired 114 | . 33 7 . 11 54 9 Largest 3 | . 2 2 . 2 3 2 Hottest 113 | . 80 90 . 80 113 55 Shots Fired 223 | . 50 13 . 13 134 13 Gun 94 | . 33 . . 2 50 9 Cannon 72 | . 9 7 . 11 45 . Launcher 57 | . 8 6 . . 39 4 Special . | . . . . . . . Kinetic 91 | . 33 . . 2 47 9 Thermal 72 | . 9 7 . 11 45 . Explosive 57 | . 8 6 . . 39 4 Electromagnetic 3 | . . . . . 3 . Robot Hit Streak 11 | . 11 3 . 4 9 4 Robot Miss Streak 3 | . 3 1 . 2 2 2 Penetration Max . | . . . . . . . Secondary Targets . | . . . . . . . Shots Hit Robots 104 | . 29 2 . 8 53 12 Core Hits 119 | . 16 6 . 4 84 9 Critical Kills . | . . . . . . . Critical Parts Destroyed 1 | . . . . . . 1 Critical Strikes 1 | . . . . . . 1 Destroy 1 | . . . . . . 1 Melee Attacks 10 | . . . . . . 10 Impact . | . . . . . . . Slashing . | . . . . . . . Piercing 10 | . . . . . . 10 Sneak Attacks . | . . . . . . . Combat Hostiles . | . . . . . . . Follow-up Attacks . | . . . . . . . Damage Inflicted 5327 | . 736 204 . 128 3828 431 Guns 874 | . 279 . . 23 478 94 Cannons 630 | . 88 35 . 105 402 . Explosions 3626 | . 369 169 . . 2948 140 Melee 197 | . . . . . . 197 Ramming . | . . . . . . . Kinetic 842 | . 279 . . 23 446 94 Thermal 957 | . 88 35 . 105 729 . Explosive 3299 | . 369 169 . . 2621 140 Electromagnetic 32 | . . . . . 32 . Impact . | . . . . . . . Slashing . | . . . . . . . Piercing 197 | . . . . . . 197 Highest Corruption 1 | . . . . . 1 1 Average Corruption 1 | . . . . . 1 1 Corruption Purged . | . . . . . . . Corruption Blocked . | . . . . . . . Effects 3 | . . . . . 1 2 Matter Fused 1 | . . . . . . 1 Data Loss (minor) 1 | . . . . . . 1 Misfires 1 | . . . . . 1 . Overload Shots . | . . . . . . . Overflow Damage 107 | . 3 . . . 104 . Projectiles 3 | . 3 . . . . . Explosions 104 | . . . . . 104 . Melee . | . . . . . . . Knockbacks . | . . . . . . . Impact . | . . . . . . . Kinetic . | . . . . . . . Secondary . | . . . . . . . Self-Inflicted Damage 161 | . 14 . . . 147 . Shots 8 | . 2 . . . 6 . Rammed . | . . . . . . . Targets Rammed . | . . . . . . . Kicked . | . . . . . . . Crushed . | . . . . . . . Highest Temperature 295 | . 117 70 . 100 295 . Average Temperature 71 | . 33 28 . 38 93 . Received Heat Transfer 1008 | . 405 . . 9 531 63 Siege Activations . | . . . . . . . Robots Corrupted . | . . . . . . . Combat Hostiles . | . . . . . . . Parts Fried . | . . . . . . . Impact Corruptions . | . . . . . . . Robots Melted . | . . . . . . . Combat Hostiles . | . . . . . . . Parts Melted 1 | . . . . . 1 . Heat Transferred 1582 | . 185 74 . 222 1101 . Parts Sabotaged . | . . . . . . . Parts Stolen . | . . . . . . . Parts Stripped . | . . . . . . . Power Chain Reactions . | . . . . . . . Alert | -11 -10 -10 -10 -9 -8 -8 ------- Run | Yrd Mat Min Exi Min Mat Sto Peak Influence 968 | . 233 222 . 120 968 468 Initial 404 | . . 90 . . 46 404 Average 229 | . 152 176 . 60 335 419 Maximum Alert Level 3 | . 1 1 . . 3 2 Low Security (%) 50 | 100 44 31 . 100 50 . Level 1 28 | . 55 68 . . 13 7 Level 2 15 | . . . . . 21 92 Level 3 5 | . . . . . 14 . Level 4 . | . . . . . . . Level 5 . | . . . . . . . High Security . | . . . . . . . Max Security . | . . . . . . . Squads Dispatched 10 | . 3 . . . 6 1 Investigation 5 | . 2 . . . 3 . Extermination . | . . . . . . . Reinforcement 5 | . 1 . . . 3 1 Assault . | . . . . . . . Garrison . | . . . . . . . Intercept . | . . . . . . . Searches Triggered . | . . . . . . . Construction Impeded 2 | . . . . . 1 1 Haulers Reinforced . | . . . . . . . Active Scanning Responses . | . . . . . . . Cargo Convoy Interrupts . | . . . . . . . Stealth | -11 -10 -10 -10 -9 -8 -8 --------- Run | Yrd Mat Min Exi Min Mat Sto Distress Signals 3 | . . . . 1 2 . Communications Jammed . | . . . . . . . Distress Signals . | . . . . . . . Times Spotted 59 | . 9 1 . 3 40 6 Peak Tracking Total 6 | . 4 1 . 1 6 3 Tactical Retreats 1 | . 1 . . . . . Traps | -11 -10 -10 -10 -9 -8 -8 ------- Run | Yrd Mat Min Exi Min Mat Sto Traps Triggered 1 | . . . . . . 1 Indirectly . | . . . . . . . Trap Hack Attempts . | . . . . . . . Triggered . | . . . . . . . Disarmed . | . . . . . . . Reprogrammed . | . . . . . . . Reused . | . . . . . . . Traps Extracted . | . . . . . . . Installed . | . . . . . . . Triggered . | . . . . . . . Machines | -11 -10 -10 -10 -9 -8 -8 ---------- Run | Yrd Mat Min Exi Min Mat Sto Machines Disabled 10 | . 1 1 . 1 7 . Max in Single Turn 2 | . 1 1 . 1 2 . Machines Repaired . | . . . . . . . Machines Dismantled . | . . . . . . . Machines Sabotaged . | . . . . . . . Overloaded Fab Kills . | . . . . . . . Hacking | -11 -10 -10 -10 -9 -8 -8 --------- Run | Yrd Mat Min Exi Min Mat Sto Machines Accessed 13 | . 3 . 4 . 5 1 Terminals 6 | . 3 . . . 3 . Fabricators . | . . . . . . . Repair Stations 2 | . . . . . 2 . Recycling Units 1 | . . . . . . 1 Scanalyzers . | . . . . . . . Garrison Access . | . . . . . . . Total Hacks 43 | . 10 . 13 . 17 3 Successful 32 | . 6 . 13 . 11 2 Failed 11 | . 4 . . . 6 1 Catastrophic 1 | . . . . . 1 . Database Lockouts . | . . . . . . . Manual 1 | . 1 . . . . . Terminals 21 | . 10 . . . 11 . Fabricators . | . . . . . . . Repair Stations 6 | . . . . . 6 . Recycling Units 3 | . . . . . . 3 Scanalyzers . | . . . . . . . Garrison Access . | . . . . . . . Terminal Hacks 26 | . 6 . 13 . 7 . Record 18 | . 4 . 13 . 1 . Branch Access Points 1 | . 1 . . . . . Emergency Access Points 2 | . . . . . 2 . Alert Level 2 | . . . . . 2 . Reinforcement Status 1 | . 1 . . . . . Assault Status 1 | . . . . . 1 . Zone Layout 1 | . . . . . 1 . Fabricator Hacks . | . . . . . . . Repair Station Hacks 4 | . . . . . 4 . Scan Component 2 | . . . . . 2 . Repair 2 | . . . . . 2 . Recycling Unit Hacks 2 | . . . . . . 2 Recycle Component 1 | . . . . . . 1 Retrieve Components 1 | . . . . . . 1 Scanalyzer . | . . . . . . . Garrison Access Hacks . | . . . . . . . Unauthorized Hacks . | . . . . . . . Terminals . | . . . . . . . Fabricators . | . . . . . . . Repair Stations . | . . . . . . . Recycling Units . | . . . . . . . Scanalyzers . | . . . . . . . Garrison Access . | . . . . . . . Data Cores Recovered . | . . . . . . . Used . | . . . . . . . Hacking Detections 7 | . 3 . . . 4 . Full Trace Events 5 | . 2 . . . 3 . Feedback Events 1 | . . . . . 1 . Corruption 1 | . . . . . 1 . Feedback Blocked . | . . . . . . . Robot Schematics Acquired . | . . . . . . . Robots Built . | . . . . . . . Authchips . | . . . . . . . Time . | . . . . . . . Total Robot Build Rating . | . . . . . . . Part Schematics Acquired . | . . . . . . . Parts Built . | . . . . . . . Authchips . | . . . . . . . Time . | . . . . . . . Total Part Build Rating . | . . . . . . . Parts Repaired 2 | . . . . . 2 . Time 26 | . . . . . 26 . Parts Recycled 1 | . . . . . . 1 Recycled Matter . | . . . . . . . Retrieved Matter . | . . . . . . . Retrieved Components 2 | . . . . . . 2 Parts Scanalyzed . | . . . . . . . Part Schematics Acquired . | . . . . . . . Parts Damaged . | . . . . . . . Bothacking | -11 -10 -10 -10 -9 -8 -8 ------------ Run | Yrd Mat Min Exi Min Mat Sto Used RIF Installer . | . . . . . . . Robots Hacked . | . . . . . . . Non-combat . | . . . . . . . Combat . | . . . . . . . Robot Hacks Applied . | . . . . . . . Relay Couplers Released . | . . . . . . . Fabnet Peak Effective % . | . . . . . . . Robots Rewired . | . . . . . . . Allies Hacked . | . . . . . . . Hacks Repelled . | . . . . . . . Allies | -11 -10 -10 -10 -9 -8 -8 -------- Run | Yrd Mat Min Exi Min Mat Sto Total Allies 2 | . . . . 2 . . Largest Group 2 | . . . . 2 2 . Highest-Rated Group 42 | . . . . 42 42 . Highest-Rated Ally 31 | . . . . 31 31 . Total Orders . | . . . . . . . Ally Attacks 9 | . . . . 4 5 . Total Damage 149 | . . . . 86 63 . Kills 4 | . . . . 3 1 . Allies Corrupted . | . . . . . . . Allies Melted . | . . . . . . . Intel | -11 -10 -10 -10 -9 -8 -8 ------- Run | Yrd Mat Min Exi Min Mat Sto Robot Analysis Total . | . . . . . . . Derelict Logs Recovered 1 | . . . . 1 . . Drone Launches . | . . . . . . . Drone Recoveries . | . . . . . . . Exploration | -11 -10 -10 -10 -9 -8 -8 ------------- Run | Yrd Mat Min Exi Min Mat Sto Turns Passed 2334 | 69 399 337 390 247 743 149 Spaces Moved 1506 | 42 165 330 407 145 358 59 Core 89 | 4 64 . . 17 4 . Treads 416 | 38 51 . . . 271 56 Legs 9 | . . . . . 9 . Wheels 992 | . 50 330 407 128 74 3 Hover . | . . . . . . . Flight . | . . . . . . . Fastest Speed 50 | 50 80 95 95 95 95 110 Average Speed 126 | 149 172 95 95 148 153 160 Slowest Speed 600 | 160 250 95 95 550 600 240 Overloaded Moves . | . . . . . . . Propulsion Burnouts . | . . . . . . . Robots Hopped . | . . . . . . . Cave-ins Triggered . | . . . . . . . Exploration Rate (%) 34 | 4 32 61 71 19 41 14 Regions Visited 6 Branch Regions 4 Pre-discovered Areas 1 | . . . 1 . . . Known Exits Taken 1 | . 1 . . . . . Unknown Exits Taken 5 | 1 . 1 1 1 1 . Scrap Searched . | . . . . . . . Spaces Dug . | . . . . . . . Terrain Destroyed 296 | . 35 41 . . 190 30 Melee . | . . . . . . . Projectile . | . . . . . . . AOE 296 | . 35 41 . . 190 30 Terrain Rammed . | . . . . . . . Walls Destroyed . | . . . . . . . Machines Disabled . | . . . . . . . Actions | -11 -10 -10 -10 -9 -8 -8 --------- Run | Yrd Mat Min Exi Min Mat Sto Total 1712 | 46 227 340 411 165 439 84 Wait 18 | . 18 . . . . . Move 1500 | 41 164 329 406 144 357 59 Hop . | . . . . . . . Pick Up 13 | . 2 2 2 2 5 . Fast Attach 19 | 5 5 . . . 5 4 Attach 21 | . 1 1 1 4 12 2 Detach 11 | . 2 1 1 4 3 . Swap 4 | . 2 . . . 2 . Drop 2 | . . . 1 . 1 . Fire 114 | . 33 7 . 11 54 9 Melee 10 | . . . . . . 10 Ram . | . . . . . . . Kick . | . . . . . . . Crush . | . . . . . . . Escape Stasis . | . . . . . . . Rewire . | . . . . . . . Trap . | . . . . . . . Miscellaneous . | . . . . . . . Route ------- -11/Scrapyard -10/Materials -10/Mines -10/Exiles (discovered 2 exits: [*Min x2]) -9/Mines -8/Materials -8/Storage History --------- Turn | Location | Event 6 | -11/Scrapyard | Discovered new exit (range 16) 70 | -11/Scrapyard | Entered Materials 82 | -10/Materials | Identified exit to Mines 305 | -10/Materials | Build established: Mutant 469 | -10/Materials | Entered Mines 521 | -10/Mines | Found a damaged Exp. Sensor Array with a note attached 528 | -10/Mines | Found Prototype Device 530 | -10/Mines | Identified Exp. Sensor Array 612 | -10/Mines | Deemed a non-threat by the Exiles lab entrance 612 | -10/Mines | Discovered new exit (range 5) 713 | -10/Mines | Assembled infested the area 718 | -10/Mines | Assisted by a Guerilla fighting off Assembled 806 | -10/Mines | Entered Exiles 834 | -10/Exiles | Met 8R-AWN 847 | -10/Exiles | Met EX-HEX 884 | -10/Exiles | Met EX-DEC 908 | -10/Exiles | Learned location of Zion (-7) 936 | -10/Exiles | Discovered new exit (range 12) 1029 | -10/Exiles | Met EX-BIN 1163 | -10/Exiles | Discovered new exit (range 14) 1196 | -10/Exiles | Entered Mines 1205 | -9/Mines | Discovered new exit (range 7) 1220 | -9/Mines | Learned Materials garrison access intel 1443 | -9/Mines | Entered Materials 1443 | -8/Materials | Accompanied by 2 allies 1443 | -8/Materials | Evolved 4 slots: Power x1, Propulsion x1, Utility x1, Weapon x1 1444 | -8/Materials | Loaded intel: 1 garrison access location 1450 | -8/Materials | Led the pair of lost Derelicts to an unsafe place 1746 | -8/Materials | Repaired Grenade Launcher 1875 | -8/Materials | Build established: Gunner 2001 | -8/Materials | Repaired Beam Cannon 2132 | -8/Materials | Discovered new exit (range 16) 2149 | -8/Materials | Core integrity fell below 50% 2186 | -8/Materials | Core integrity fell below 20% 2186 | -8/Materials | Entered Storage 2227 | -8/Storage | Lost 14 parts (4p5n1u4w) 2335 | -8/Storage | Destroyed by H-55 Commando with Gauss Rifle Last Messages --------------- Extracted 4 energy. Slug penetrates Wall. ALERT: Construction progress impeded, dispatching reinforcements to local area. U-05 Engineer lays Concrete. Slug penetrates Wall. The unstable cave ceiling collapses. Penetrated by Slug. Slug penetrates Wall. Penetrated by Slug. The unstable cave ceiling collapses. Penetrated by Slug. H-55 Commando suffers critical hit (Destroy). Destroyed Gauss Rifle. Penetrated by Slug. The unstable cave ceiling collapses. Grenade Launcher destroyed. H-55 Commando destroyed. The unstable cave ceiling collapses. U-05 Engineer lays Concrete. Map ----- +----------------------------------------------------+ | ???????????????????????????????????????? | | ???????????????????????????????????????? | | ???????????????????????????????????????? | | ???????????????????????????############# | | ???????????????????????????# # # | | ???????????????????????????# # """" # | | ???????????????????????????# # """" # | | ???????????????????????????# # """" # | | ???????????????????????????# # """" # | | ???????????????????????????# + # | | ????????????????###+######## # """" # | | ??????????????? # """" # | | ??????????????? # """" # | | ??????????????? ? # """" # | | ????????????????############ # ! # | | ???????????????????????????# ###"Y"### | | ???????????????????????????# #?#"""#?? | | ???????????????????????????# #?#####?? | | ???????????????????????????# #???????? | | ???????????????????????????+ #???????? | | ???????????????????????????# #???????? | | ???????????????????????????# #???????? | | ???????????????####????????# #???????? | | ???????????????# ##????## ##??????? | | ??????????#/#### ##### #??????? | | ???????? h @ #??????? | | ???????? % r #??????? | | ???????? u #??????? | | ??????????#+#### # # ##### #??????? | | ????????????? # ????#######??????? | | ??????????? # ??????????????????? | | ???????????""??#####???????????????????? | | ???????????????????????????????????????? | | ???????????????????????????????????????? | | ???????????????????????????????????????? | | ???????????????????????????????????????? | | ???????????????????????????????????????? | | ???????????????????????????????????????? | | ???????????????????????????????????????? | | ???????????????????????????????????????? | | ???????????????????????????????????????? | | ???????????????????????????????????????? | | ???????????????????????????????????????? | | ???????????????????????????????????????? | | ???????????????????????????????????????? | | ???????????????????????????????????????? | | ???????????????????????????????????????? | | ???????????????????????????????????????? | | ???????????????????????????????????????? | | ???????????????????????????????????????? | +----------------------------------------------------+ Best States ------------- Heat Dissipation 31 Energy Generation 15 Energy Capacity 275 Matter Stores 300 Matter Capacity 300 Sight Range 16 Robot Scan Range 20 Terrain Scan Density 85 Armor Coverage 225 Evasion (%) 44 Targeting Accuracy 6 Recoil Reduction 3 Defensive Hacking 10 Item Schematics ----------------- None Robot Schematics ------------------ None Fabricated ------------ Nothing Alien Tech Used ----------------- None Achievements -------------- Librarian Maybe Next Time I'll Detach My Launcher Challenges ------------ None Game ------ Seed TacticalAssaultBox Manual? 0 Play Time 00:46:02 Cumulative 5.7 hours Start 2024.08.24 @ 14:31:52 End 2024.08.24 @ 17:06:49 Sessions 1 Manual Loads 0 Difficulty Rogue Special Mode None Game No. 11 Rogue 7 Adventurer 4 Explorer 0 Win Type - Total 0 Types 0/0/0/0/0/0/0/0/0 Lore% 3 Gallery% 10 Achievement% 10 Wizard Run 0 Options --------- Layout 1 ASCII 1 Keyboard 0 Movement Mouse Keybinds 0 Fullscreen 1 Font 24/Smallcaps Map View 50x35 Zoom Use 0% Tactical HUD 0 Map Filters NONE Filters NONE Steam 1 RUN: 484285bf-bdf1-42a0-a009-42112b828d2a